fUSD/lending_fUSD_20240422
["ID","MTS","AMOUNT","RATE_DAILY","PERIOD"]
[323208191,1713815432568,-153.72,0.00011232,2]
[323208192,1713815432578,-150.0,0.0001126,2]
[323208194,1713815432587,-153.72,0.00011264,2]
[323208196,1713815432596,-153.72,0.00011296,2]
[323208198,1713815432605,-691.79199104,0.00011307,2]
[323208200,1713815432615,-260.69,0.00011314,2]
[323208202,1713815432624,-2563.66,0.00011314,2]
[323208204,1713815432635,-153.72,0.00011328,2]
[323208205,1713815432644,-153.72,0.00011361,2]
[323208206,1713815432654,-153.72,0.00011393,2]
[323208207,1713815432663,-4549.85441173,0.00011414,2]
[323208208,1713815432672,-153.72,0.00011425,2]
[323208209,1713815432682,-153.72,0.00011457,2]
[323208210,1713815432691,-153.72,0.00011489,2]
[323208211,1713815432701,-153.72,0.00011521,2]
[323208212,1713815432710,-153.72,0.00011553,2]
[323208213,1713815432720,-153.72,0.00011586,2]
[323208214,1713815432729,-153.72,0.00011618,2]
[323208215,1713815432738,-3320.676,0.00011618,2]
[323208216,1713815432748,-1233.26464772,0.00011635,2]
[323208217,1713815432757,-153.72,0.0001165,2]
[323208218,1713815432766,-153.72,0.00011682,2]
[323208219,1713815432776,-198.09459067,0.00011687,2]
[323208220,1713815432785,-3163.11291365,0.00011744,2]
[323208221,1713815432794,-824.98,0.00011918,2]
[323208222,1713815432804,-908.76,0.00011918,2]
[323208223,1713815432813,-2750.0,0.00012,2]
[323208224,1713815432822,-162.23,0.00012033,2]
[323208225,1713815432831,-210.24,0.00012048,2]
[323208226,1713815432841,-509.5012,0.00012048,2]
[323208227,1713815432850,-725.915,0.00012048,2]
[323208228,1713815432859,-2500.0,0.00012048,2]
[323208229,1713815432869,-218.21800995,0.00012049,2]
[323208230,1713815432878,-209.52982044,0.00012049,2]
[323208231,1713815432889,-292.04,0.00012055,2]
[323208232,1713815432898,-162.7,0.00012055,2]
[323208233,1713815432907,-683.9535,0.00012063,2]
[323208234,1713815432916,-5295.66785139,0.00012063,2]
[323208235,1713815432926,-222.00545378,0.00012063,2]
[323208236,1713815432935,-325.24,0.00012083,2]
[323208237,1713815432945,-312.49,0.00012084,2]
[323208238,1713815432954,-831.8,0.00012126,2]
[323208239,1713815432964,-150.0,0.00012129,2]
[323208240,1713815432973,-5806.13527407,0.00012138,2]
[323208241,1713815432983,-305.46216554,0.00012138,2]
[323208242,1713815432992,-3080.15233842,0.00012146,2]
[323208243,1713815433002,-267.05959127,0.00012146,2]
[323208244,1713815433011,-212.1763452,0.00012146,2]
[323208245,1713815433020,-316.62824532,0.00012146,2]
[323208246,1713815433029,-223.65370089,0.00012146,2]
[323208247,1713815433038,-1140.73190118,0.00012146,2]
[323208248,1713815433047,-1378.24623076,0.00012146,2]
[323208249,1713815433057,-170.62172303,0.00012147,2]
[323208250,1713815433066,-581.36636718,0.00012147,2]
[323208251,1713815433075,-1292.97161679,0.00012148,2]
[323208252,1713815433085,-89000.69397619,0.00012148,2]
[323208253,1713815433122,-2557.53143,0.00012148,2]
[323208254,1713815433139,-2791.05680083,0.00012148,2]
[323208255,1713815433156,-270716.43920229,0.00012148,2]
[323208256,1713815433169,-15066.99998,0.00012148,2]
[323208257,1713815433186,-3512.11921071,0.00012148,2]
[323208258,1713815433200,-2203.97488,0.00012148,2]
[323208273,1713815438467,-1279.67340436,0.00012148,2]
[323208274,1713815438496,-3213.75263205,0.00012148,2]
[323208359,1713815440327,-295381.00589067,0.00012148,2]
[323208360,1713815440337,-39477.94667934,0.00012149,2]
[323208361,1713815440349,-205522.05332066,0.00012149,2]
[323208362,1713815440359,-67223.677,0.00012163,2]
[323208363,1713815440368,-2279.5534,0.00012163,2]
[323208364,1713815440378,-198.09459067,0.00012164,2]
[323208365,1713815440388,-173.80588473,0.00012164,2]
[323208366,1713815440398,-209.52982044,0.00012164,2]
[323208367,1713815440407,-1500.0,0.00012176,2]
[323208368,1713815440416,-150.0,0.00012186,2]
[323208369,1713815440426,-150.0,0.00012206,2]
[323208370,1713815440436,-300.0,0.00012224,2]
[323208371,1713815440445,-1500.0,0.00012228,2]
[323208372,1713815440454,-218.21800995,0.00012233,2]
[323208373,1713815440463,-1500.0,0.00012245,2]
[323208374,1713815440473,-598.03420533,0.00012247,2]
[323208375,1713815440483,-292.25586595,0.00012247,2]
[323208376,1713815440493,-1558.43212849,0.00012248,2]
[323208377,1713815440504,-150.0,0.00012248,2]
[323208378,1713815440514,-44895.68284247,0.0001225,2]
[323208379,1713815440523,-190.1950447,0.00012263,2]
[323208380,1713815440533,-435.6379,0.00012264,2]
[323208381,1713815440542,-2004.537,0.00012264,2]
[323208382,1713815440551,-11353.899,0.00012264,2]
[323208383,1713815440561,-100000.0,0.00012264,2]
[323208384,1713815440570,-173.5591,0.00012264,2]
[323208385,1713815440580,-20415.49716391,0.00012264,2]
[323208386,1713815440593,-1147.94373023,0.00012264,2]
[323208387,1713815440605,-20450.99749865,0.00012264,2]
[323208388,1713815440618,-10931.55257449,0.00012264,2]
[323208389,1713815440750,-460.63094984,0.00012264,2]
[323208390,1713815440766,-2300.20138208,0.00012264,2]
[323208391,1713815440846,-526.03847821,0.00012264,2]
[323208392,1713815440919,-666.14594998,0.00012264,2]
[323208393,1713815440933,-997.90937261,0.00012264,2]
[323208394,1713815440943,-500.0,0.00012264,2]
[323208395,1713815440952,-151.0,0.00012264,2]
[323208396,1713815440962,-150.05835285,0.00012265,2]
[323208397,1713815440971,-170.55464949,0.00012265,2]
[323208398,1713815440982,-150.0,0.00012266,2]
[323208399,1713815440993,-150.0,0.00012267,2]
[323208400,1713815441004,-1500.0,0.00012271,2]
[323208401,1713815441016,-150.0,0.00012276,2]
[323208402,1713815441026,-150.0,0.00012279,2]
[323208403,1713815441037,-150.0,0.00012282,2]
[323208404,1713815441049,-150.0,0.00012286,2]
[323208405,1713815441061,-3000.0,0.0001229,2]
[323208406,1713815441073,-150.0,0.00012308,2]
[323208407,1713815441083,-150.0,0.0001231,2]
[323208408,1713815441092,-150.0,0.00012318,2]
[323208409,1713815441103,-150.0,0.00012319,2]
[323208410,1713815441114,-5295.66785136,0.00012321,2]
[323208411,1713815441123,-210.0,0.00012321,2]
[323208412,1713815441133,-300.0,0.00012327,2]
[323208413,1713815441143,-150.0,0.00012331,2]
[323208414,1713815441151,-300.0,0.00012332,2]
[323208415,1713815441162,-150.0,0.00012336,2]
[323208416,1713815441171,-150.0,0.00012336,2]
[323208417,1713815441180,-150.0,0.00012345,2]
[323208418,1713815441192,-150.0,0.00012349,2]
[323208419,1713815441202,-150.0,0.00012353,2]
[323208420,1713815441212,-150.0,0.00012353,2]
[323208421,1713815441222,-234.92932396,0.00012362,2]
[323208422,1713815441232,-164.13442256,0.00012362,2]
[323208423,1713815441241,-208.73867777,0.00012362,2]
[323208424,1713815441251,-375.6988305,0.00012362,2]
[323208425,1713815441261,-660.29612628,0.00012362,2]
[323208426,1713815442243,-458.68758806,0.00012362,2]
[323208435,1713815443665,-1745.5550246,0.00012362,2]
[323208436,1713815443716,-11476.18800555,0.00012362,2]
[323208437,1713815443730,-1458.78306831,0.00012362,2]
[323208438,1713815443808,-1456.85084849,0.00012362,2]
[323208441,1713815443846,-3149.22220706,0.00012362,2]
[323208445,1713815446750,-177.62,0.00011828,2]
[323208446,1713815446760,-575.981792,0.00012362,2]
[323208447,1713815446957,-838.16971411,0.00012362,2]
[323208448,1713815446967,-1001.56124984,0.00012362,2]
[323208449,1713815446978,-226.33295605,0.00012362,2]
[323208455,1713815487081,3019.5187,0.00011102,2]
[323208459,1713815909772,37663.36338929,0.00011,2]
[323208460,1713815935476,195.77,9.491e-05,2]
[323208461,1713816200325,-500.92,0.00011414,2]
[323208462,1713816200349,-150.81,0.00011444,2]
[323208463,1713816200370,-1135.18,0.00011505,2]
[323208464,1713816200391,-150.0,0.00011522,2]
[323208465,1713816200412,-195.77,0.00011755,2]
[323208466,1713816207244,-150.0,0.00012014,2]
[323208467,1713816207268,-162.0355115,0.00012087,2]
[323208468,1713816207296,-150.0,0.00012183,2]
[323208469,1713816207321,-854.07,0.00012188,2]
[323208470,1713816207346,-150.0,0.00012192,2]
[323208471,1713816207368,-1500.0,0.00012193,2]
[323208472,1713816207394,-2162.2,0.00012193,2]
[323208473,1713816207420,-150.99,0.00012193,2]
[323208474,1713816207442,-499.99,0.00012193,2]
[323208475,1713816207467,-356.51,0.00012193,2]
[323208476,1713816207491,-1114.27507666,0.00012194,2]
[323208477,1713816207519,-150.0,0.00012202,2]
[323208478,1713816207542,-150.0,0.00012204,2]
[323208479,1713816207566,-150.0,0.00012206,2]
[323208480,1713816207589,-150.0,0.00012216,2]
[323208481,1713816207613,-150.0,0.00012224,2]
[323208482,1713816207951,-150.0,0.00012233,2]
[323208483,1713816207972,-3000.0,0.0001224,2]
[323208484,1713816207993,-150.0,0.00012244,2]
[323208485,1713816208014,-150.0,0.0001226,2]
[323208486,1713816208033,-1500.0,0.00012263,2]
[323208487,1713816208054,-150.0,0.00012268,2]
[323208488,1713816208075,-67.24941184,0.00012273,2]
[323208489,1713816452389,185.99,9.48e-05,2]
[323208501,1713816631398,-162.0355115,0.0001131,2]
[323208503,1713816631408,-253.90151793,0.00011314,2]
[323208505,1713816631418,-599.26,0.00011411,2]
[323208507,1713816631428,-217.65,0.00011414,2]
[323208509,1713816631437,-1099.48276012,0.00011416,2]
[323208510,1713816631448,-36.37723988,0.00011416,2]
[323208512,1713816631458,-150.0,0.00011416,2]
[323208514,1713816631470,-168.07,0.00011419,2]
[323208516,1713816631480,-185.99,0.00011744,2]
[323208518,1713816631489,-172.63642278,0.00012,2]
[323208519,1713816631502,-42.31357722,0.00012,2]
[323208520,1713816631511,-150.0,0.00012024,2]
[323208521,1713816631521,-701.28369526,0.00012024,2]
[323208522,1713816631548,-1460.91630474,0.00012024,2]
[323208523,1713816631558,-150.99,0.00012024,2]
[323208524,1713816631567,-499.99,0.00012024,2]
[323208525,1713816631578,-150.0,0.00012037,2]
[323208526,1713816631586,-150.0,0.00012052,2]
[323208527,1713816631596,-32.37078102,0.00012052,2]
[323208528,1713816631607,-821.69921898,0.00012052,2]
[323208529,1713816631616,-150.0,0.0001206,2]
[323208530,1713816631625,-150.0,0.00012084,2]
[323208531,1713816631635,-1500.0,0.0001209,2]
[323208532,1713816631645,-150.0,0.00012149,2]
[323208533,1713816631654,-150.0,0.00012199,2]
[323208534,1713816631664,-217.24941184,0.00012202,2]
[323208535,1713816631673,-150.0,0.0001222,2]
[323208536,1713816631682,-150.0,0.00012236,2]
[323208537,1713816631692,-150.0,0.00012239,2]
[323208538,1713816631702,-1320.88972368,0.0001224,2]
[323208540,1713816631847,-179.11027632,0.0001224,2]
[323208542,1713816631856,-1620.62753,0.0001224,2]
[323208545,1713816631866,-150.0,0.00012242,2]
[323208549,1713816631874,-150.0,0.00012252,2]
[323208551,1713816631883,-82.75058816,0.00012273,2]
[323208553,1713816631893,-150.0,0.00012275,2]
[323208554,1713816631902,-150.0,0.00012279,2]
[323208556,1713816631911,-1377.91313436,0.00012286,2]
[323208562,1713816632980,-122.08686564,0.00012286,2]
[323208563,1713816632989,-150.0,0.00012292,2]
[323208564,1713816632999,-150.0,0.00012295,2]
[323208565,1713816633008,-847.0,0.000123,2]
[323208566,1713816633017,-1114.27507666,0.00012322,2]
[323208567,1713816633027,-75.57494506,0.00012341,2]
[323208568,1713816633045,-593.41505923,0.00012341,2]
[323208569,1713816633056,-831.00999571,0.00012341,2]
[323208570,1713816633066,-1500.0,0.00012343,2]
[323208571,1713816633075,-815.79413465,0.00012361,7]
[323208572,1713816633085,-213.56152832,0.00012361,2]
[323208573,1713816633095,-103.59434449,0.00012362,2]
[323208574,1713816633104,-1069.25887054,0.00012362,2]
[323208575,1713816633114,-778.9104662,0.00012363,2]
[323208576,1713816633124,-1500.0,0.00012364,2]
[323208577,1713816633134,-500.0,0.00012364,2]
[323208578,1713816633143,-1500.0,0.00012369,2]
[323208579,1713816633153,-1014.66958331,0.00012396,2]
[323208580,1713816633164,-1500.0,0.00012417,2]
[323208581,1713816633174,-1478.031997,0.00012454,2]
[323208582,1713816633185,-10462.66901978,0.00012454,2]
[323208583,1713816633220,-809.73333754,0.00012454,2]
[323208584,1713816633231,-3811.01156089,0.00012454,2]
[323208585,1713816633242,-580.86539022,0.00012454,2]
[323208632,1713816637860,-3398.31487387,0.00012454,2]
[323208633,1713816637875,-5695.7437989,0.00012454,2]
[323208634,1713816637997,-838.75528515,0.00012454,2]
[323208635,1713816638015,-3319.01570001,0.00012454,2]
[323208713,1713816639453,-563.65436694,0.00012454,2]
[323208714,1713816639463,-396.34563306,0.00012454,2]
[323208715,1713816639480,-590.22039797,0.00012454,2]
[323208716,1713816639514,-449.18047177,0.00012454,2]
[323208717,1713816639524,-1392.54702073,0.00012454,2]
[323208718,1713816639536,-638.765,0.00012454,2]
[323208719,1713816639549,-151.92198897,0.00012454,2]
[323208720,1713816639558,-207.19321246,0.00012463,2]
[323208721,1713816639568,-5844.7365871,0.00012463,2]
[323208722,1713816639577,-500.0,0.00012529,2]
[323208723,1713816639587,-155.2684975,0.00012563,2]
[323208724,1713816639596,-155.0,0.00012564,2]
[323208725,1713816639606,-238.2718178,0.00012564,2]
[323208726,1713816639617,-155.0,0.00012565,2]
[323208727,1713816639627,-2500.0,0.00012567,2]
[323208728,1713816639637,-932.0208,0.00012567,2]
[323208729,1713816639646,-301.49611001,0.000126,2]
[323208730,1713816639656,-500.0,0.00012657,2]
[323208731,1713816639666,-8868.1100889,0.00012657,2]
[323208732,1713816639676,-150.0,0.0001266,2]
[323208733,1713816639686,-7113.52783087,0.0001266,2]
[323208734,1713816639696,-210.20793595,0.00012665,2]
[323208735,1713816639706,-155.25281614,0.00012665,2]
[323208736,1713816639715,-1003.59365332,0.00012666,2]
[323208737,1713816639725,-5792.4241,0.00012667,2]
[323208738,1713816639734,-1771.8047,0.00012667,2]
[323208739,1713816639744,-53808.3433,0.00012667,2]
[323208740,1713816639754,-6258.01003403,0.00012667,2]
[323208741,1713816639780,-30263.1473479,0.00012667,2]
[323208742,1713816639830,-6108.96117319,0.00012667,2]
[323208743,1713816639854,-5061.64822947,0.00012667,2]
[323208744,1713816639976,-435.67082283,0.00012667,2]
[323208745,1713816639987,-1600.0,0.00012667,2]
[323208772,1713816642500,-866.67264469,0.00012667,2]
[323208773,1713816642614,-666.97128,0.00012667,2]
[323208774,1713816642628,-6912.40138861,0.00012667,2]
[323208775,1713816642640,-3337.8624,0.00012667,2]
[323208779,1713816643933,-388.33599996,0.00012667,2]
[323208780,1713816643945,-4349.01500908,0.00012667,2]
[323208794,1713816646234,-207.19321246,0.00012666,2]
[323208795,1713816646243,-5844.7365871,0.00012666,2]
[323208796,1713816646252,-6601.87788875,0.00012667,2]
[323208797,1713816646264,-762.58582215,0.00012667,2]
[323208798,1713816646276,-3642.85020046,0.00012667,2]
[323208799,1713816646299,-667.0664,0.00012667,2]
[323208800,1713816646310,-404.4192757,0.00012667,2]
[323208801,1713816646356,-2362.176004,0.00012667,2]
[323208802,1713816646367,-1850.25890307,0.00012667,2]
[323208803,1713816646425,-442.00189353,0.00012667,2]
[323208804,1713816646437,-607.97134023,0.00012667,2]
[323208805,1713816646477,-3302.63757345,0.00012667,2]
[323208806,1713816646532,-729.0,0.00012667,2]
[323208807,1713816646543,-2000.81106848,0.00012667,2]
[323208811,1713816896136,164.83,9.119e-05,2]
[323208812,1713816956315,230.68,9.274e-05,2]
[323208813,1713816972911,500.0,0.00011192,2]
[323208814,1713816999096,180.05,8.914e-05,2]
[323208815,1713817008840,23900.0,0.00011094,2]
[323208816,1713817016637,507.80303587,0.00011145,2]
[323208817,1713817019650,158.66,0.00011127,2]
[323208818,1713817063704,650.87,0.00010757,2]
[323208819,1713817070426,161.44,0.00010766,2]
[323208820,1713817079920,1659.71,0.00010766,2]
[323208821,1713817120159,750.0,0.00010722,2]
[323208822,1713817122010,-2215.32753899,0.00011238,2]
[323208823,1713817122033,-155.0,0.00011239,2]
[323208824,1713817122057,-262.25935508,0.00011239,2]
[323208825,1713817122080,-155.0,0.00011239,2]
[323208826,1713817122102,-325.67432968,0.0001124,2]
[323208827,1713817122124,-3776.34143535,0.00011241,2]
[323208828,1713817122147,-150.0,0.00011241,2]
[323208829,1713817122169,-35253.1562109,0.00011243,2]
[323208830,1713817122191,-158.66,0.00011243,2]
[323208831,1713817122213,-1026.71808343,0.00011246,2]
[323208832,1713817122235,-1917.94,0.00011247,2]
[323208833,1713817122260,-290.97,0.00011327,2]
[323208834,1713817122285,-520.59,0.00011327,2]
[323208835,1713817122308,-150.99,0.00011327,2]
[323208836,1713817122333,-155.53433329,0.00011354,2]
[323208837,1713817122357,-158.66,0.00011359,2]
[323208838,1713817122381,-1097.07,0.00011468,2]
[323208839,1713817122405,-158.66,0.00011475,2]
[323208840,1713817122432,-230.68,0.00011538,2]
[323208841,1713817122457,-150.99,0.0001156,2]
[323208842,1713817122479,-250.0,0.00011561,2]
[323208843,1713817122501,-14236.96,0.00011561,2]
[323208844,1713817122526,-1432.95,0.00011586,2]
[323208845,1713817122550,-135769.86871328,0.00011587,2]
[323208846,1713817373493,602.01771644,0.00011145,2]
[323208847,1713817376865,949.80845942,0.00011145,2]
[323208848,1713817378690,12593.21846342,0.00011145,2]
[323208849,1713817396874,161.57381335,0.00011142,2]
[323208850,1713817403920,1026.51,0.00010652,2]
[323208851,1713817407152,13576.61853071,0.00011144,2]
[323208852,1713817410017,583.52,0.00010612,2]
[323208853,1713817419919,164.83,8.452e-05,2]
[323208854,1713817428928,150.23,0.0001055,2]
[323208855,1713817433926,16823.27,0.00010511,2]
[323208856,1713817453574,292.15,8.61e-05,2]
[323208857,1713817453801,292.15,0.00010874,2]
[323208858,1713817456926,1831.58,0.00010528,2]
[323208859,1713817477068,220.76685198,0.00011145,2]
[323208860,1713817506764,1899.61691882,0.00011145,2]
[323208862,1713817510204,23900.0,0.00010474,2]
[323208863,1713817519215,25186.43692684,0.00011145,2]
[323208864,1713817520027,261.41,0.00010439,2]
[323208865,1713817529081,1204.03543288,0.00011145,2]
[323208866,1713817553030,702.01109013,0.00011142,2]
[323208867,1713817554992,702.01109013,0.00011143,2]
[323208868,1713817557094,702.01109013,0.00011144,2]
[323208869,1713817559391,702.01109013,0.00011144,2]
[323208870,1713817561067,702.01109013,0.00011145,2]
[323208871,1713817567004,180.05,8.349e-05,2]
[323208872,1713817569640,155.0,0.00011143,2]
[323208873,1713817575666,7695.83587207,0.00011145,2]
[323208874,1713817592137,151.47,0.00010518,2]
[323208875,1713817592260,151.47,0.00010554,2]
[323208876,1713817592773,151.47,0.00010591,2]
[323208877,1713817592941,151.47,0.00010627,2]
[323208878,1713817593125,151.47,0.00010664,2]
[323208879,1713817593375,151.47,0.00010701,2]
[323208880,1713817593623,151.47,0.00010737,2]
[323208881,1713817593871,151.47,0.00010774,2]
[323208882,1713817594090,151.47,0.0001081,2]
[323208883,1713817594309,151.47,0.00010847,2]
[323208884,1713817595435,151.47,0.00010883,2]
[323208885,1713817595598,151.47,0.0001092,2]
[323208886,1713817596242,151.47,0.00010956,2]
[323208887,1713817596396,151.47,0.00010993,2]
[323208888,1713817596670,151.47,0.00011029,2]
[323208889,1713817602690,151.47,0.00011066,2]
[323208890,1713817603236,571.37171296,0.00010992,7]
[323208891,1713817604117,155.0,0.00010992,2]
[323208892,1713817683447,411.57104298,0.00011145,2]
[323208893,1713817753908,4257.8,0.00010335,2]
[323208894,1713817766357,376.80702448,0.00011201,2]
[323208895,1713817769844,363.20518945,0.00011201,2]
[323208896,1713817773995,203.9438348,0.00011201,2]
[323208897,1713817778220,155.0,0.00011201,2]
[323208898,1713817778586,408.40214741,0.00011201,2]
[323208899,1713817781973,210.58686948,0.00011201,2]
[323208900,1713817788961,194.37853639,0.00011201,2]
[323208901,1713817789047,155.0,0.00011201,2]
[323208902,1713817792590,2215.32753899,0.00011201,2]
[323208903,1713817793344,1351.45342977,0.00011201,2]
[323208904,1713817794903,684.11075626,0.00011201,2]
[323208905,1713817796260,4728.74899769,0.00011201,2]
[323208906,1713817802679,4582.90344868,0.00011201,2]
[323208907,1713817803952,1060.66830362,0.00011201,2]
[323208908,1713817816204,267.42040667,0.00011201,2]
[323208909,1713817816838,537.94873719,0.00011201,2]
[323208910,1713817827679,178.06,0.00011024,2]
[323208949,1713817831624,-161.49803489,0.00011202,2]
[323208952,1713817831633,-207.82598978,0.00011202,2]
[323208955,1713817831642,-787.08726309,0.00011202,2]
[323208957,1713817831652,-202.31155224,0.00011202,2]
[323208959,1713817831662,-5146.45143902,0.00011202,2]
[323208960,1713817831674,-1115.16069834,0.00011202,2]
[323208961,1713817831688,-380.54,0.00011202,2]
[323208962,1713817831700,-1451.45000021,0.00011202,2]
[323208963,1713817831712,-432.13597191,0.00011202,2]
[323208964,1713817831724,-290.0,0.00011202,2]
[323208965,1713817831735,-779.28,0.00011202,2]
[323208966,1713817831879,-363.76455997,0.00011202,2]
[323208967,1713817831891,-1628.38678977,0.00011202,2]
[323208968,1713817831902,-4050.0,0.00011202,2]
[323208970,1713817831927,-789.29286824,0.00011202,2]
[323208978,1713817832013,-826.3254998,0.00011202,2]
[323208985,1713817832749,-1336.26085808,0.00011202,2]
[323208986,1713817832761,-5303.3560839,0.00011202,2]
[323208987,1713817832774,-1497.07238,0.00011202,2]
[323208988,1713817832799,-5672.0215,0.00011202,2]
[323208989,1713817832810,-4191.65756166,0.00011202,2]
[323208990,1713817832820,-150.0,0.00011202,2]
[323208991,1713817832829,-139.1352769,0.00011203,2]
[323208992,1713817832841,-333.0,0.00011203,2]
[323208993,1713817832853,-1688.08803601,0.00011203,2]
[323208994,1713817832865,-1057.6,0.00011203,2]
[323208995,1713817832906,-702.13739251,0.00011203,2]
[323208996,1713817832918,-5737.5,0.00011203,2]
[323208997,1713817832932,-908.69499603,0.00011203,2]
[323208998,1713817832942,-813.87457627,0.00011215,2]
[323208999,1713817832951,-2955.7659812,0.00011229,2]
[323209000,1713817832960,-504.75376224,0.00011231,2]
[323209001,1713817832969,-504.75376224,0.00011234,2]
[323209002,1713817832977,-504.75376224,0.00011234,2]
[323209003,1713817832987,-17100.07407329,0.00011235,2]
[323209004,1713817832996,-278.98127002,0.00011239,2]
[323209005,1713817833005,-155.0,0.00011239,2]
[323209006,1713817833015,-377.69238003,0.00011239,7]
[323209007,1713817833024,-150.99,0.00011239,2]
[323209008,1713817833034,-209.99236181,0.00011239,2]
[323209009,1713817833044,-376.39071628,0.00011239,2]
[323209010,1713817833054,-308.90952919,0.00011239,2]
[323209011,1713817833064,-362.81259661,0.00011239,2]
[323209012,1713817833074,-410.44555009,0.00011239,2]
[323209013,1713817833083,-158.3969132,0.00011239,2]
[323209014,1713817833093,-315.80623599,0.00011239,2]
[323209015,1713817833102,-158.56041771,0.00011239,2]
[323209016,1713817833112,-682.94892054,0.00011239,2]
[323209017,1713817833121,-155.3047756,0.00011239,2]
[323209018,1713817833130,-305.91433827,0.00011239,2]
[323209019,1713817833140,-2204.45692958,0.00011239,2]
[323209020,1713817833149,-272.87445165,0.00011239,2]
[323209021,1713817833159,-1071.7796977,0.00011239,2]
[323209022,1713817833169,-274.14437386,0.00011239,2]
[323209023,1713817833180,-211.83191101,0.00011239,2]
[323209024,1713817833189,-4525.72187863,0.0001124,2]
[323209025,1713817833199,-1809.29,0.0001124,2]
[323209026,1713817833208,-499.99,0.0001124,2]
[323209027,1713817833218,-202.62535728,0.0001124,3]
[323209028,1713817833228,-356.51,0.0001124,2]
[323209029,1713817833237,-150.99,0.0001124,2]
[323209030,1713817833247,-504641.72800519,0.00011241,2]
[323209031,1713817833261,-41532.63646346,0.00011241,2]
[323209032,1713817833270,-245.12088853,0.00011242,2]
[323209033,1713817833280,-216.5360115,0.00011242,2]
[323209034,1713817833289,-219.73582537,0.00011242,2]
[323209035,1713817833299,-308.24550797,0.00011242,2]
[323209036,1713817833308,-174.12211115,0.00011242,2]
[323209037,1713817833317,-347.34840719,0.00011242,2]
[323209038,1713817833327,-192.39388199,0.00011242,2]
[323209039,1713817833336,-263.79418499,0.00011242,2]
[323209040,1713817833346,-175.55659933,0.00011242,2]
[323209041,1713817833355,-2359.2011908,0.00011242,2]
[323209042,1713817833365,-208.21685267,0.00011242,2]
[323209043,1713817833374,-189.71207442,0.00011242,2]
[323209044,1713817833383,-1993.20295054,0.00011243,2]
[323209045,1713817833392,-432.48267008,0.00011243,2]
[323209046,1713817833401,-990.62994113,0.00011243,2]
[323209047,1713817833411,-1136.31586257,0.00011243,2]
[323209048,1713817833420,-264.01498696,0.00011243,2]
[323209049,1713817833430,-155.26212772,0.00011243,2]
[323209050,1713817833439,-167.20253002,0.00011243,2]
[323209051,1713817833449,-1616.52917903,0.00011243,2]
[323209052,1713817833461,-155.0,0.00011243,2]
[323209053,1713817833470,-305.63695622,0.00011243,2]
[323209054,1713817833479,-2031.38412993,0.00011243,2]
[323209055,1713817833488,-1034.6412428,0.00011243,3]
[323209056,1713817833497,-1034.6412428,0.00011243,3]
[323209057,1713817833507,-1034.6412428,0.00011243,3]
[323209058,1713817833517,-1034.6412428,0.00011243,3]
[323209059,1713817833526,-1034.64124282,0.00011243,3]
[323209060,1713817833535,-10181.51249241,0.00011243,2]
[323209061,1713817833547,-1962.53935742,0.00011243,2]
[323209062,1713817833558,-5450.93999964,0.00011243,2]
[323209063,1713817833570,-748.80304712,0.00011243,2]
[323209064,1713817833582,-601.00499998,0.00011243,2]
[323209065,1713817833593,-1399.99999996,0.00011243,2]
[323209066,1713817833687,-427.34999358,0.00011243,2]
[323209067,1713817834017,-367.39999985,0.00011243,2]
[323209068,1713817834029,-490.0,0.00011243,2]
[323209069,1713817834041,-423.02988,0.00011243,2]
[323209070,1713817834052,-378.73,0.00011243,2]
[323209071,1713817834063,-11941.32622673,0.00011243,2]
[323209072,1713817834076,-417.27522362,0.00011243,2]
[323209121,1713817837776,-250.13437147,0.00011239,2]
[323209122,1713817837786,-2473.86562853,0.00011243,2]
[323209126,1713817837843,-44351.60828499,0.00011243,2]
[323209127,1713817837853,-12785662.8,0.00011244,2]